fUSD/lending_fUSD_20250520
["ID","MTS","AMOUNT","RATE_DAILY","PERIOD"]
[361751475,1747756242097,-200.0,0.00031239,2]
[361751476,1747756242108,-150.0,0.00031239,7]
[361751477,1747756242118,-321.37,0.00031283,2]
[361751478,1747756242127,-171.27,0.00031459,80]
[361751479,1747756242138,-213.8573624,0.00031525,25]
[361751480,1747756242148,-500.0,0.00031687,2]
[361751481,1747756242158,-1561.03775394,0.00031787,2]
[361751482,1747756242170,-461.38536472,0.00031787,2]
[361751483,1747756242182,-2459.84598389,0.00031787,2]
[361751484,1747756242194,-2102.8,0.00031787,2]
[361751485,1747756242206,-714.77921346,0.00031787,2]
[361751486,1747756242328,-16600.15168399,0.00031787,2]
[361751487,1747756242338,-1977.96233291,0.00031893,2]
[361751488,1747756242348,-500.0,0.00031993,120]
[361751489,1747756242358,-861.466923,0.00032009,4]
[361751490,1747756242368,-4000.0,0.00032201,2]
[361751491,1747756242377,-300.0,0.00032224,2]
[361751492,1747756242387,-266.99,0.00032228,30]
[361751493,1747756242398,-673.42135649,0.0003231,2]
[361751494,1747756242407,-673.42135649,0.00032419,2]
[361751495,1747756242418,-1593.88960659,0.000325,7]
[361751496,1747756242434,-1211.11039341,0.000325,7]
[361751497,1747756242446,-330.1407838,0.0003267,2]
[361751498,1747756242456,-673.42135649,0.00032688,2]
[361751499,1747756242466,-177.3621,0.000329,2]
[361751500,1747756242476,-500.0,0.00032972,7]
[361751501,1747756242486,-438.26020823,0.00032972,7]
[361751502,1747756242496,-500.0,0.00032973,5]
[361751503,1747756242506,-500.23049401,0.00032973,5]
[361751504,1747756242518,-207.4,0.00032989,3]
[361751505,1747756242528,-215.0738,0.00032989,3]
[361751506,1747756242538,-223.0315306,0.00032989,3]
[361751507,1747756242548,-231.28369723,0.00032989,3]
[361751508,1747756242558,-239.84119403,0.00032989,3]
[361751509,1747756242567,-248.71531821,0.00032989,3]
[361751510,1747756242577,-104.47449794,0.00032989,3]
[361751511,1747756242590,-153.44328704,0.00032989,3]
[361751512,1747756242601,-267.46074303,0.00032989,3]
[361751513,1747756242611,-186.56199344,0.00032989,3]
[361751514,1747756242623,-90.79479708,0.00032989,3]
[361751515,1747756242633,-287.61899177,0.00032989,3]
[361751516,1747756242644,-298.26089446,0.00032989,3]
[361751517,1747756242654,-309.29654756,0.00032989,3]
[361751518,1747756242664,-156.74425113,0.00032989,3]
[361751527,1747756243257,-151.0,0.00027914,2]
[361751529,1747756243268,-163.99626869,0.00032989,3]
[361751530,1747756243278,-332.60791905,0.00032989,3]
[361751531,1747756243288,-344.91441206,0.00032989,3]
[361751533,1747756243298,-357.6762453,0.00032989,3]
[361751535,1747756243308,-370.91026638,0.00032989,3]
[361751537,1747756243319,-384.63394623,0.00032989,3]
[361751539,1747756243329,-398.86540225,0.00032989,3]
[361751540,1747756243339,-2738.57168502,0.00033,2]
[361751541,1747756243352,-6471.64457424,0.00033,2]
[361751542,1747756243364,-1540.05969592,0.00033,2]
[361751543,1747756243376,-6163.41419395,0.00033,2]
[361751544,1747756243401,-1667.03714163,0.00033,2]
[361751545,1747756243447,-295.99920458,0.00033,2]
[361751546,1747756243530,-7655.68239701,0.00033,2]
[361751547,1747756243541,-1000.0,0.00033,2]
[361751548,1747756243551,-500.0,0.00033,2]
[361751549,1747756243561,-500.0,0.00033,2]
[361751550,1747756243571,-500.0,0.00033,2]
[361751551,1747756243581,-500.0,0.00033,2]
[361751552,1747756243590,-432.11437329,0.00033,2]
[361751553,1747756243603,-700.0,0.00033,2]
[361751554,1747756243613,-4898.5293,0.00033093,10]
[361751555,1747756243623,-500.0,0.000331,45]
[361751556,1747756243633,-1360.0,0.000331,3]
[361751557,1747756243642,-1360.0,0.000331,3]
[361751558,1747756243653,-1360.0,0.000331,3]
[361751559,1747756243663,-1360.0,0.000331,3]
[361751560,1747756243674,-1360.0,0.000331,3]
[361751561,1747756243684,-1360.0,0.000331,3]
[361751562,1747756243695,-1360.0,0.000331,3]
[361751563,1747756243705,-1360.0,0.000331,3]
[361751564,1747756243715,-1360.0,0.000331,3]
[361751565,1747756243725,-1360.0,0.000331,3]
[361751566,1747756243735,-500.0,0.00033124,7]
[361751567,1747756243746,-500.0,0.0003315,7]
[361751569,1747756243763,-213.8573624,0.0003315,28]
[361751570,1747756243773,-436.02,0.00033165,2]
[361751571,1747756243783,-500.0,0.0003333,7]
[361751572,1747756243794,-152.4206789,0.000334,2]
[361751573,1747756243804,-500.0,0.00033449,7]
[361751574,1747756243814,-197.06,0.000335,31]
[361751575,1747756243824,-197.06,0.000335,31]
[361751576,1747756243835,-197.06,0.000335,31]
[361751577,1747756243845,-197.06,0.000335,31]
[361751578,1747756243855,-197.06,0.000335,31]
[361751579,1747756243865,-197.06,0.000335,31]
[361751580,1747756243877,-197.06,0.000335,31]
[361751581,1747756243888,-197.06,0.000335,31]
[361751582,1747756243897,-197.06,0.000335,31]
[361751583,1747756243907,-197.06,0.000335,31]
[361751584,1747756243917,-197.06,0.000335,31]
[361751585,1747756243927,-197.06,0.000335,31]
[361751586,1747756243936,-500.0,0.00033536,7]
[361751587,1747756243946,-321.37,0.00033547,2]
[361751588,1747756243956,-500.0,0.00033593,120]
[361751589,1747756243966,-1321.233662,0.00033593,120]
[361751590,1747756243975,-200.0,0.000336,12]
[361751591,1747756243986,-500.0,0.00033699,7]
[361751592,1747756243996,-500.0,0.000337,12]
[361751593,1747756244006,-30000.0,0.000338,2]
[361751594,1747756244016,-800.0,0.000338,12]
[361751595,1747756244026,-2500.0,0.00033867,2]
[361751596,1747756244037,-165.5310227,0.0003387,15]
[361751597,1747756244047,-500.0,0.0003387,2]
[361751598,1747756244058,-861.0278,0.0003387,2]
[361751599,1747756244068,-295.47196354,0.0003388,7]
[361751600,1747756244077,-1117.3417,0.0003388,2]
[361751601,1747756244088,-174.89322019,0.0003389,2]
[361751602,1747756244099,-168.49926316,0.0003389,6]
[361751603,1747756244109,-295.47196354,0.0003389,7]
[361751604,1747756244118,-1100.0,0.000339,12]
[361751605,1747756244128,-295.47196354,0.000339,7]
[361751606,1747756244138,-150.0,0.00033921,2]
[361751607,1747756244148,-25780.34332974,0.0003396,3]
[361751608,1747756246134,-513.75,0.00032843,2]
[361751609,1747756246146,-1464.2123329,0.00032843,2]
[361751610,1747756246156,-27049.07745572,0.0003396,3]
[361751611,1747756246199,-2633.256,0.0003396,3]
[361751612,1747756246278,-800.0,0.0003396,3]
[361751613,1747756246396,-3212.66273304,0.0003396,3]
[361751614,1747756246408,-3786.35723,0.0003396,3]
[361751615,1747756246418,-5051.41048875,0.00033967,3]
[361751616,1747756246474,-4480.47291394,0.00033967,3]
[361751617,1747756246490,-599.28819105,0.00033967,3]
[361751727,1747756444074,159.34,0.00027,120]
[361751763,1747757432445,-151.0,0.00026304,2]
[361751764,1747757432456,-151.0,0.00026319,2]
[361751765,1747757432465,-151.0,0.00026325,2]
[361751766,1747757432475,-151.0,0.00026338,2]
[361751767,1747757432486,-311.0197,0.000269,2]
[361751768,1747757432496,-302.53030727,0.00027,2]
[361751769,1747757432508,-691.50133235,0.00027,2]
[361751770,1747757432518,-2933.9447599,0.00027,4]
[361751771,1747757432530,-2564.20000002,0.00027,4]
[361751772,1747757432548,-16977.3502977,0.00027,4]
[361751773,1747757432558,-213.8573624,0.000289,20]
[361751774,1747757432568,-250.0,0.000297,2]
[361751775,1747757432579,-207.4,0.00030052,2]
[361751776,1747757432589,-1823.0,0.0003007,2]
[361751777,1747757432599,-150.0,0.00030137,2]
[361751778,1747757432609,-150.0,0.00030137,2]
[361751779,1747757432619,-150.0,0.00030137,2]
[361751780,1747757432629,-150.0,0.00030137,2]
[361751781,1747757432640,-150.0,0.00030137,2]
[361751782,1747757432650,-150.0,0.00030137,2]
[361751783,1747757432660,-150.0,0.00030137,2]
[361751784,1747757432670,-150.0,0.00030137,2]
[361751785,1747757432685,-150.0,0.00030137,2]
[361751786,1747757432695,-150.0,0.00030137,2]
[361751787,1747757432707,-150.0,0.00030137,2]
[361751788,1747757432717,-150.0,0.00030137,2]
[361751789,1747757432727,-150.0,0.00030137,2]
[361751790,1747757432737,-150.0,0.00030137,2]
[361751791,1747757432747,-150.0,0.00030137,2]
[361751792,1747757432757,-150.0,0.00030137,2]
[361751793,1747757432767,-150.0,0.00030137,2]
[361751794,1747757432778,-150.0,0.00030137,2]
[361751795,1747757432788,-150.0,0.00030137,2]
[361751796,1747757432798,-150.0,0.00030137,2]
[361751797,1747757432807,-150.0,0.00030137,2]
[361751798,1747757432818,-150.0,0.00030137,2]
[361751799,1747757432828,-150.0,0.00030137,2]
[361751800,1747757432838,-150.0,0.00030137,2]
[361751801,1747757432849,-150.0,0.00030137,2]
[361751802,1747757432858,-150.0,0.00030137,2]
[361751803,1747757432870,-150.0,0.00030137,2]
[361751804,1747757432879,-150.0,0.00030137,2]
[361751805,1747757432889,-150.0,0.00030137,2]
[361751806,1747757432899,-150.0,0.00030137,2]
[361751807,1747757432908,-150.0,0.00030137,2]
[361751809,1747757432919,-150.0,0.00030137,2]
[361751811,1747757432930,-150.0,0.00030137,2]
[361751813,1747757432940,-150.0,0.00030137,2]
[361751815,1747757432950,-150.0,0.00030137,2]
[361751817,1747757432960,-150.0,0.00030137,2]
[361751819,1747757432970,-150.0,0.00030137,2]
[361751821,1747757432979,-150.0,0.00030137,2]
[361751823,1747757432988,-150.0,0.00030137,2]
[361751825,1747757432998,-347.67,0.0003027,2]
[361751827,1747757433007,-1823.0,0.0003038,2]
[361751829,1747757433017,-1823.0,0.0003069,2]
[361751831,1747757433026,-151.0,0.00030981,2]
[361751833,1747757433036,-151.0,0.00030981,2]
[361751835,1747757433045,-151.0,0.00030981,2]
[361751837,1747757433055,-151.0,0.00030981,2]
[361751839,1747757433065,-151.0,0.00030981,2]
[361751841,1747757433075,-151.0,0.00030981,2]
[361751843,1747757433084,-151.0,0.00030981,2]
[361751845,1747757433094,-151.0,0.00030981,2]
[361751847,1747757433103,-151.0,0.00030981,2]
[361751849,1747757433113,-151.0,0.00030981,2]
[361751851,1747757433122,-151.0,0.00030981,2]
[361751853,1747757433132,-151.0,0.00030981,2]
[361751855,1747757433142,-151.0,0.00030981,2]
[361751857,1747757433152,-151.0,0.00030981,2]
[361751859,1747757433162,-151.0,0.00030981,2]
[361751861,1747757433173,-151.0,0.00030981,2]
[361751863,1747757433186,-151.0,0.00030981,2]
[361751865,1747757433196,-151.0,0.00030981,2]
[361751867,1747757433207,-151.0,0.00030981,2]
[361751869,1747757433217,-1823.0,0.00031,2]
[361751871,1747757433228,-627.92529013,0.00031,2]
[361751873,1747757433241,-203.0,0.0003116,2]
[361751875,1747757433252,-1823.0,0.0003131,2]
[361751877,1747757433262,-215.0738,0.00031421,2]
[361751879,1747757433273,-1823.0,0.0003162,2]
[361751881,1747757433285,-171.27,0.00031678,80]
[361751883,1747757433294,-213.8573624,0.000317,25]
[361751885,1747757433304,-2772.0,0.00031755,2]
[361751887,1747757433315,-1000.0,0.00031779,2]
[361751889,1747757433325,-200.0,0.00031822,2]
[361751891,1747757433334,-1823.0,0.0003193,2]
[361751893,1747757433344,-150.0,0.00032464,7]
[361751895,1747757433354,-156.18,0.00032513,2]
[361751897,1747757433363,-347.67,0.00032534,2]
[361751899,1747757433373,-233.61,0.00032629,30]
[361751901,1747757433383,-223.0315306,0.0003279,2]
[361751903,1747757433392,-400.16,0.00032799,2]
[361751905,1747757433403,-184.28,0.00032799,2]
[361751907,1747757433414,-300.0,0.00032848,2]
[361751909,1747757433423,-500.0,0.000329,2]
[361751911,1747757433436,-467.22355943,0.00032905,2]
[361751913,1747757433446,-151.8,0.00032905,2]
[361751915,1747757433456,-955.667,0.00033147,34]
[361751917,1747757433467,-2264.39160754,0.00033167,2]
[361751920,1747757433482,-250.0,0.00033167,2]
[361751922,1747757433496,-449.93201453,0.00033167,2]
[361751924,1747757433509,-282.13220514,0.00033167,2]
[361751927,1747757433522,-2040.00004,0.00033167,2]
[361751955,1747757438394,-151.0,0.00026344,2]
[361751957,1747757438406,-160.184893,0.00032247,2]
[361751958,1747757438624,-119.173107,0.00032247,2]
[361751959,1747757438634,-18613.54413279,0.00033167,2]
[361751960,1747757438644,-173.42,0.000335,31]
[361751961,1747757438653,-173.42,0.000335,31]
[361751962,1747757438663,-173.42,0.000335,31]
[361751963,1747757438672,-173.42,0.000335,31]
[361751964,1747757438682,-173.42,0.000335,31]
[361751965,1747757438691,-173.42,0.000335,31]
[361751966,1747757438701,-173.42,0.000335,31]
[361751967,1747757438711,-173.42,0.000335,31]
[361751969,1747757438721,-173.42,0.000335,31]
[361751971,1747757438732,-173.42,0.000335,31]
[361751973,1747757438741,-173.42,0.000335,31]
[361751975,1747757438751,-173.42,0.000335,31]
[361751977,1747757438760,-1562.0,0.000338,30]
[361751979,1747757438770,-17061.26462136,0.00033812,2]
[361751980,1747757438779,-162.55231694,0.00033866,15]
[361751982,1747757438788,-4539.21307248,0.00033869,2]
[361751984,1747757438797,-204.50578064,0.0003387,2]
[361751986,1747757438807,-1090.7533,0.0003387,2]
[361751988,1747757438816,-174.89322019,0.0003389,2]
[361751990,1747757438825,-221.60397265,0.000339,7]
[361751992,1747757438834,-625.67,0.0003395,3]
[361751994,1747757438843,-159.53,0.0003395,2]
[361751996,1747757438855,-123.18570842,0.00033951,2]
[361751998,1747757438866,-36.34429158,0.00033951,2]
[361752000,1747757438876,-159.53,0.00033956,2]
[361752002,1747757438885,-1052.67450442,0.0003396,3]
[361752009,1747757440528,-331.86921268,0.0003396,3]
[361752010,1747757440776,-414.19252169,0.0003396,3]
[361752035,1747757444044,-1790.68889644,0.0003396,3]
[361752036,1747757444209,-5265.3587318,0.0003396,3]
[361752037,1747757444222,-4791.17830158,0.0003396,3]
[361752038,1747757444235,-15295.58741437,0.0003396,3]
[361752039,1747757444250,-284.3,0.0003396,3]
[361752040,1747757444262,-3347.07327746,0.0003396,3]
[361752041,1747757444274,-4836.0,0.0003396,3]
[361752042,1747757444287,-5164.93015457,0.0003396,3]
[361752044,1747757446675,-49526.93416409,0.0003396,3]
[361752045,1747757446686,-227.59475069,0.0003396,2]
[361752046,1747757446705,-172661.35623198,0.0003396,2]
[361752047,1747757446717,-122801.049572,0.0003396,3]
[361752048,1747757446729,-49558.0162752,0.0003396,3]
[361752049,1747757446741,-3852.02944254,0.00033963,3]
[361752053,1747757548036,100000.0,0.00027397,120]
[361752068,1747758074527,204.06,0.00011212,2]
[361752116,1747758367684,1472.49144207,8e-05,2]
[361752314,1747758633818,-261.82861182,0.00013368,2]
[361752316,1747758633831,-5668.70471866,0.00013368,2]
[361752319,1747758633844,-518.23066378,0.00013368,2]
[361752374,1747758634394,-314.25394705,0.00013368,2]
[361752376,1747758634405,-348.81,0.00013699,2]
[361752378,1747758634416,-250.0,0.00015,2]
[361752380,1747758634427,-300.0,0.00017,2]
[361752382,1747758634437,-721.97517417,0.00018999,2]
[361752391,1747758634518,-478.02482583,0.00018999,2]
[361752393,1747758634528,-35.75352627,0.00019,2]
[361752666,1747758637472,-314.24647373,0.00019,2]
[361752668,1747758637483,-328.42777627,0.00020187,2]
[361752670,1747758637496,-20.38222373,0.00020187,2]
[361752672,1747758637507,-400.0,0.00021,2]
[361752674,1747758637518,-151.0,0.00021198,2]
[361752677,1747758637529,-280.0,0.00021278,2]
[361752679,1747758637541,-151.0,0.00021279,2]
[361752681,1747758637551,-151.0,0.00021388,2]
[361752683,1747758637561,-151.0,0.00021466,2]
[361752685,1747758637571,-199.89365522,0.00022816,3]
[361752687,1747758637584,-4184.156181,0.00022816,3]
[361752689,1747758637597,-8115.95016378,0.00022816,3]
[361752691,1747758637607,-12500.0,0.00022825,3]
[361752693,1747758637621,-450.0,0.00023,2]
[361752695,1747758637631,-267.37477981,0.000236,2]
[361752698,1747758637642,-500.0,0.000236,2]
[361752699,1747758637652,-212.06444913,0.000236,2]
[361752701,1747758637662,-500.0,0.000236,2]
[361752703,1747758637671,-500.0,0.000236,2]
[361752705,1747758637681,-501.06199401,0.000236,2]
[361752708,1747758637695,-500.0,0.000236,2]
[361752710,1747758637705,-500.0,0.00023625,2]
[361752712,1747758637715,-1748.14266692,0.000239,10]
[361752714,1747758637724,-2122.83,0.00023969,2]
[361752716,1747758637735,-500.0,0.00024148,2]
[361752718,1747758637745,-500.0,0.00024148,2]
[361752720,1747758637755,-500.0,0.00024148,2]
[361752722,1747758637764,-500.0,0.00024173,2]
[361752724,1747758637774,-1748.14266673,0.00024555,11]
[361752726,1747758637783,-150.0,0.00024999,2]
[361752728,1747758637795,-500.0,0.00025,2]
[361752730,1747758637805,-19999.999999,0.00025,2]
[361752732,1747758637816,-1748.14266673,0.0002521,12]
[361752734,1747758637825,-1748.14266673,0.00025866,14]
[361752736,1747758637835,-1748.14266673,0.00026521,15]
[361752738,1747758637844,-348.81,0.00026676,2]
[361752740,1747758637854,-715.0,0.000267,4]
[361752742,1747758637863,-550.0,0.00027,2]
[361752744,1747758637873,-1748.14266673,0.00027176,16]
[361752746,1747758637882,-1748.14266673,0.00027831,17]
[361752748,1747758637892,-1748.14266673,0.00028486,19]
[361752750,1747758637902,-207.4,0.00028797,2]
[361752752,1747758637912,-600.0,0.00029,2]
[361752754,1747758637922,-151.8,0.00029,2]
[361752756,1747758637931,-1748.14266673,0.00029141,20]
[361752758,1747758637941,-171.27,0.00029765,80]
[361752760,1747758637952,-1748.14266673,0.00029797,21]
[361752762,1747758637963,-200.0,0.00029937,2]
[361752764,1747758637973,-1000.0,0.00029956,2]
[361752766,1747758637983,-215.0738,0.00030166,2]
[361752768,1747758637993,-150.0,0.00030231,7]
[361752770,1747758638003,-1748.14266673,0.00030452,23]
[361752772,1747758638013,-351.44,0.00030507,2]
[361752774,1747758638023,-170.41,0.00030584,120]
[361752776,1747758638033,-155.25,0.00030825,2]
[361752778,1747758638044,-155.25,0.00030837,2]
[361752780,1747758638053,-155.25,0.00030849,2]
[361752782,1747758638064,-155.25,0.00030861,2]
[361752784,1747758638074,-155.25,0.00030873,2]
[361752786,1747758638084,-155.25,0.00030884,2]
[361752788,1747758638094,-155.25,0.00030896,2]
[361752790,1747758638104,-155.25,0.00030908,2]
[361752792,1747758638114,-155.25,0.0003092,2]
[361752794,1747758638124,-155.25,0.00030932,2]
[361752796,1747758638133,-155.25,0.00030944,2]
[361752798,1747758638143,-155.25,0.00030956,2]
[361752800,1747758638153,-155.25,0.00030967,2]
[361752802,1747758638163,-155.25,0.00030979,2]
[361752804,1747758638172,-650.0,0.00031,2]
[361752806,1747758638182,-1000.0,0.00031,5]
[361752808,1747758638192,-1748.14266673,0.00031107,24]
[361752810,1747758638201,-223.0315306,0.00031535,2]
[361752812,1747758638211,-191.51,0.00031731,2]
[361752815,1747758638225,-1748.14266673,0.00031762,25]
[361752817,1747758638235,-161.41,0.00031949,2]
[361752819,1747758638245,-1000.0,0.00032,6]
[361752821,1747758638254,-1000.0,0.00032,6]
[361752823,1747758638264,-1258.0,0.00032,6]
[361752825,1747758638273,-1000.0,0.00032,6]
[361752827,1747758638283,-1000.0,0.00032,5]
[361752829,1747758638294,-1000.0,0.00032,5]
[361752831,1747758638304,-1000.0,0.00032,5]
[361752833,1747758638313,-1000.0,0.00032,5]
[361752835,1747758638323,-1000.0,0.00032,5]
[361752837,1747758638332,-1000.0,0.00032,4]
[361752839,1747758638342,-151.0,0.00032,14]
[361752840,1747758638352,-1052.0,0.00032,6]
[361752842,1747758638362,-151.0,0.00032243,14]
[361752844,1747758638372,-1748.14266673,0.00032417,26]
[361752846,1747758638382,-500.0,0.00032461,120]
[361752848,1747758638392,-501.64703719,0.00032473,5]
[361752849,1747758638402,-500.0,0.00032473,5]
[361752851,1747758638411,-19039.33914305,0.00032494,2]
[361752853,1747758638424,-1177.09734354,0.00032494,2]
[361752855,1747758638435,-1070.3727021,0.00032494,2]
[361752857,1747758638447,-1057.6207184,0.00032494,2]
[361752859,1747758638458,-1555.57009291,0.00032494,2]
[361752861,1747758638468,-204.4,0.00032717,30]
[361752863,1747758638478,-156.18,0.0003272,2]
[361752865,1747758638487,-333.46,0.00032724,2]
[361752867,1747758638497,-351.44,0.00032771,2]
[361752868,1747758638507,-151.0,0.0003286,2]
[361752870,1747758638517,-1018.23,0.00032879,2]
[361752872,1747758638527,-231.28369723,0.00032904,2]
[361752874,1747758638537,-8429.56964736,0.00033,2]
[361752876,1747758638546,-700.0,0.00033,2]
[361752877,1747758638556,-1000.0,0.00033,9]
[361752879,1747758638567,-1000.0,0.00033,8]
[361752881,1747758638577,-1000.0,0.00033,8]
[361752883,1747758638586,-1000.0,0.00033,7]
[361752885,1747758638595,-1000.0,0.00033,7]
[361752887,1747758638607,-21117.78136669,0.00033,77]
[361752888,1747758638620,-33333.0,0.00033,44]
[361752890,1747758638631,-1748.14266673,0.00033072,28]
[361752892,1747758638640,-348.81,0.00033165,2]
[361752894,1747758638650,-152.62,0.000335,31]
[361752896,1747758638662,-152.62,0.000335,31]
[361752898,1747758638672,-152.62,0.000335,31]
[361752900,1747758638682,-152.62,0.000335,31]
[361752901,1747758638694,-152.62,0.000335,31]
[361752903,1747758638704,-152.62,0.000335,31]
[361752905,1747758638716,-152.62,0.000335,31]
[361752907,1747758638726,-152.62,0.000335,31]
[361752909,1747758638735,-152.62,0.000335,31]
[361752911,1747758638745,-152.62,0.000335,31]
[361752913,1747758638755,-152.62,0.000335,31]
[361752915,1747758638765,-152.62,0.000335,31]
[361752917,1747758638774,-151.0,0.00033568,30]
[361752919,1747758638784,-1000.0,0.000337,2]
[361752920,1747758638795,-1748.14266673,0.00033728,29]
[361752922,1747758638806,-1327.82285057,0.0003376,6]
[361752924,1747758638815,-764.533,0.00033801,36]
[361752926,1747758638825,-864.45616425,0.00033802,2]
[361752928,1747758638835,-9813.8174,0.0003386,2]
[361752930,1747758638845,-1327.82285057,0.00033861,6]
[361752931,1747758638855,-938.0954,0.00033861,2]
[361752933,1747758638864,-4851.47854625,0.00033864,2]
[361752935,1747758638874,-221.60397265,0.00033866,7]
[361752937,1747758638883,-1000.0,0.00033866,2]
[361752938,1747758638893,-176.13846324,0.0003387,15]
[361752940,1747758638904,-500.0,0.0003387,2]
[361752942,1747758638914,-2718.71564833,0.00033877,2]
[361752944,1747758638926,-1975.0,0.00033877,2]
[361753008,1747758639655,-306.28435167,0.00033877,2]
[361753009,1747758639666,-111.56492277,0.0003388,6]
[361753011,1747758639679,-60.4237089,0.0003388,6]
[361753013,1747758639691,-174.89322019,0.0003389,2]
[361753015,1747758639701,-203.0,0.00033928,2]
[361753017,1747758639710,-305.38307091,0.0003395,2]
[361753029,1747758639868,-4194.61692909,0.0003395,2]
[361753030,1747758639879,-492.13469664,0.00033955,61]
[361753031,1747758639888,-17827.87637455,0.00033957,3]
[361753033,1747758639924,-822.14461619,0.00033957,3]
[361753034,1747758639935,-10617.42561936,0.00033957,3]
[361753035,1747758639945,-17940.39009107,0.00033957,3]
[361753036,1747758639980,-856.299,0.00033957,3]
[361753050,1747758642576,-1284.25004,0.00033957,3]
[361753051,1747758642644,-500.0,0.00032999,7]
[361753052,1747758642655,-1642.2464521,0.00033957,3]
[361753053,1747758642794,-482.2233021,0.00033957,3]
[361753054,1747758642806,-337.04549921,0.00033957,3]
[361753060,1747758645671,-500.0,0.00032999,7]
[361753061,1747758645680,-500.0,0.00032999,7]
[361753062,1747758645694,-464.42061576,0.00032999,7]
[361753063,1747758645706,-35.57938424,0.00032999,7]
[361753064,1747758645715,-500.0,0.00032999,7]
[361753065,1747758645725,-500.0,0.00032999,7]
[361753066,1747758645734,-500.0,0.00032999,7]
[361753067,1747758645743,-374.42061379,0.00032999,7]
[361753068,1747758645775,-125.57938621,0.00032999,7]
[361753069,1747758645785,-500.0,0.00032999,7]
[361753070,1747758645795,-500.0,0.00032999,7]
[361753071,1747758645805,-500.0,0.00032999,7]
[361753072,1747758645814,-500.0,0.00032999,7]
[361753073,1747758645823,-500.0,0.00032999,7]
[361753074,1747758645833,-500.0,0.00032999,7]
[361753075,1747758645843,-500.0,0.00032999,7]
[361753076,1747758645852,-500.0,0.00032999,7]
[361753077,1747758645862,-500.0,0.00032999,7]
[361753078,1747758645872,-500.0,0.00032999,7]
[361753080,1747758645881,-500.0,0.00032999,7]
[361753082,1747758645891,-500.0,0.00032999,7]
[361753084,1747758645901,-500.0,0.00032999,7]
[361753086,1747758645911,-500.0,0.00032999,7]
[361753088,1747758645921,-6724.99222562,0.00033957,3]
[361753090,1747758645931,-29740.7104706,0.00033957,3]
[361753092,1747758645941,-29267.4466101,0.0003396,3]
[361753093,1747758645951,-25492.0375462,0.0003396,3]
[361753094,1747758645961,-87802.3398304,0.0003396,3]
[361753095,1747758645979,-42298.43002511,0.0003396,3]
[361753096,1747758645994,-45530.42681074,0.0003396,3]
[361753097,1747758646006,-466.7680028,0.0003396,3]
[361753105,1747759242311,150.0,0.00013,5]
[361753114,1747759831667,-307.96,0.00013699,2]
[361753115,1747759831677,-112.856,0.00015,2]
[361753116,1747759831690,-137.144,0.00015,2]
[361753117,1747759831700,-133.19573497,0.00017,2]
[361753118,1747759831719,-166.80426503,0.00017,2]
[361753119,1747759831728,-165.41699923,0.00019,2]
[361753120,1747759831740,-184.58300077,0.00019,2]
[361753121,1747759831751,-307.96,0.00020187,2]
[361753122,1747759831760,-400.0,0.00021,2]
[361753123,1747759831770,-450.0,0.00023,2]
[361753124,1747759831779,-272.5903992,0.000239,3]
[361753125,1747759831791,-1928.7489092,0.000239,3]
[361753126,1747759831803,-255.97559429,0.000239,3]
[361753127,1747759831815,-1212.17759608,0.000239,3]